[Event "HUN-ch Rapid 2019"]
[Site "Ajka"]
[Date "2019.07.19"]
[Round "3.20"]
[White "Reviczki, Roland"]
[Black "Akots, Gabor"]
[Result "0-1"]
[ECO "C77"]
[WhiteElo "2017"]
[BlackElo "2238"]
[Annotator "NA"]
[PlyCount "66"]
[EventDate "2019.07.18"]
[EventType "swiss"]
[EventCountry "HUN"]
[SourceTitle "playchess.com"]
[Source "ChessBase"]
[SourceQuality "1"]
[TimeControl "1200+5"]

1. e4 {[%emt 0:00:03]} e5 {[%emt 0:00:02]} 2. Nf3 {[%emt 0:00:01]} Nc6 {[%emt 0:00:02]} 3. Bb5 {[%emt 0:00:02]} a6 {[%emt 0:00:02]} 4. Ba4 {[%emt 0:00:01]} Nf6 {[%emt 0:00:01]} 5. d3 {[%emt 0:00:01]} d6 {[%emt 0:00:06]} 6. O-O {[%emt 0:00:04]} g6 {[%emt 0:00:06]} 7. c3 {[%emt 0:00:12]} Bg7 {[%emt 0:00:02]} 8. Re1 {[%emt 0:00:09]} O-O {[%emt 0:00:03]} 9. d4 {[%emt 0:00:09]} b5 {[%emt 0:02:45]} 10. Bc2 {[%emt 0:02:03]} Bg4 {[%emt 0:00:55]} 11. d5 {[%emt 0:00:37]} Ne7 {[%emt 0:00:34]} 12. h3 {[%emt 0:00:15]} Bd7 {[%emt 0:00:05]} 13. Bb3 {[%emt 0:01:13]} h6 {[%emt 0:00:09]} 14. a4 {[%emt 0:02:40]} Nh5 {[%emt 0:00:33]} 15. Nh2 {[%emt 0:01:57]} Rb8 {[%emt 0:01:16]} 16. axb5 axb5 {[%emt 0:00:01]} 17. Ng4 {[%emt 0:00:27]} Kh7 {[%emt 0:00:04]} 18. Nd2 {[%emt 0:00:43]} Nc8 {[%emt 0:03:05]} 19. Nf1 {[%emt 0:00:38]} Qh4 {[%emt 0:00:19]} 20. Bc2 {[%emt 0:04:42]} f5 {[%emt 0:01:41]} 21. exf5 {[%emt 0:00:02]} gxf5 {[%emt 0:00:01]} 22. Kh2 {[%emt 0:00:50]} Nf6 {[%emt 0:05:38]} 23. Nxf6+ {[%emt 0:00:32]} Qxf6 {[%emt 0:00:01]} 24. Ng3 {[%emt 0:00:22]} Kh8 {[%emt 0:01:09]} 25. Nh5 {[%emt 0:00:18]} Qf7 {[%emt 0:00:07]} 26. Nxg7 {[%emt 0:00:02]} Qxg7 {[%emt 0:00:01]} 27. Qh5 {[%emt 0:00:17]} Rf6 {[%emt 0:00:49]} 28. f4 {[%emt 0:00:16]} Nb6 {[%emt 0:01:33]} 29. fxe5 {[%emt 0:00:24]} dxe5 {[%emt 0:00:20]} 30. Rxe5 {[%emt 0:01:11]} Rg8 {[%emt 0:00:01]} 31. Qf3 {[%emt 0:00:47]} Rg6 {[%emt 0:00:08]} 32. Re2 {[%emt 0:00:02]} Rg3 {[%emt 0:00:09]} 33. Qf4 {[%emt 0:00:14]} Rxg2+ {[%emt 0:00:08]} 0-1

[Event "HUN-ch Rapid 2019"]
[Site "Ajka"]
[Date "2019.07.19"]
[Round "4.2"]
[White "Mihok, Oliver"]
[Black "Balog, Imre"]
[Result "1/2-1/2"]
[ECO "C10"]
[WhiteElo "2550"]
[BlackElo "2566"]
[Annotator "ChessBase"]
[PlyCount "81"]
[EventDate "2019.07.18"]
[EventType "swiss"]
[EventCountry "HUN"]
[SourceTitle "playchess.com"]
[Source "ChessBase"]
[SourceQuality "1"]
[TimeControl "1200+5"]

1. e4 {[%emt 0:00:03]} e6 {[%emt 0:00:02]} 2. d4 {[%emt 0:00:02]} d5 {[%emt 0:00:02]} 3. Nc3 {[%emt 0:00:01]} Nc6 {[%emt 0:00:02]} 4. Nf3 {[%emt 0:00:06]} Nf6 {[%emt 0:00:03]} 5. Bd3 {[%emt 0:00:06]} Bb4 {[%emt 0:00:05]} 6. O-O {[%emt 0:00:04]} Bxc3 {[%emt 0:01:02]} 7. exd5 {[%emt 0:00:02]} Bxd4 {[%emt 0:00:47]} 8. dxc6 {[%emt 0:00:56]} Bc5 {[%emt 0:00:56]} 9. Ne5 {[%emt 0:00:42]} O-O {[%emt 0:01:56]} 10. Bg5 {[%emt 0:00:47]} h6 {[%emt 0:02:44]} 11. Bh4 {[%emt 0:00:40]} bxc6 {[%emt 0:01:37]} 12. Nxc6 {[%emt 0:02:12]} Qd5 {[%emt 0:00:38]} 13. Bxf6 {[%emt 0:00:54]} gxf6 {[%emt 0:00:02]} 14. Qg4+ {[%emt 0:00:14]} Qg5 {[%emt 0:00:08]} 15. Qe4 {[%emt 0:00:38]} f5 {[%emt 0:00:41]} 16. Ne7+ {[%emt 0:00:05]} Qxe7 {[%emt 0:00:07]} 17. Qxa8 {[%emt 0:00:03]} e5 {[%emt 0:00:02]} 18. Qc6 {[%emt 0:00:42]} Be6 {[%emt 0:00:55]} 19. c3 {[%emt 0:01:06]} Rb8 {[%emt 0:01:24]} 20. b4 {[%emt 0:00:17]} Bd6 {[%emt 0:00:01]} 21. Bc4 {[%emt 0:00:54]} Bd7 {[%emt 0:00:18]} 22. Qf3 {[%emt 0:00:18]} Qg5 {[%emt 0:01:08]} 23. Qg3 {[%emt 0:00:37]} e4 {[%emt 0:00:15]} 24. f4 {[%emt 0:00:41]} exf3 {[%emt 0:00:12]} 25. Qxg5+ {[%emt 0:00:06]} hxg5 {[%emt 0:00:01]} 26. Rxf3 {[%emt 0:00:20]} Kg7 {[%emt 0:00:02]} 27. Rd1 {[%emt 0:01:07]} f4 {[%emt 0:00:22]} 28. h3 {[%emt 0:00:31]} Rb6 {[%emt 0:00:52]} 29. Bd5 {[%emt 0:01:03]} g4 {[%emt 0:00:40]} 30. Rf2 {[%emt 0:01:12]} gxh3 {[%emt 0:00:07]} 31. gxh3 {[%emt 0:00:04]} Bxh3 {[%emt 0:00:02]} 32. Rh2 {[%emt 0:00:44]} Bf5 {[%emt 0:00:14]} 33. Rg2+ {[%emt 0:00:25]} Kf6 {[%emt 0:00:15]} 34. a3 {[%emt 0:00:16]} Ra6 {[%emt 0:00:15]} 35. Ra2 {[%emt 0:00:24]} Bg6 {[%emt 0:00:56]} 36. Bf3 {[%emt 0:00:23]} Bf5 {[%emt 0:00:13]} 37. Kf2 {[%emt 0:00:24]} Be6 {[%emt 0:00:27]} 38. Bd5 {[%emt 0:00:08]} Bg4 {[%emt 0:00:02]} 39. Bf3 {[%emt 0:00:06]} Be6 {[%emt 0:00:01]} 40. Bd5 {[%emt 0:00:02]} Bg4 {[%emt 0:00:01]} 41. Bf3 {[%emt 0:00:18]} 1/2-1/2

[Event "HUN-ch Rapid 2019"]
[Site "Ajka"]
[Date "2019.07.19"]
[Round "4.4"]
[White "Csiszar, Csaba"]
[Black "Papp, Gabor"]
[Result "0-1"]
[ECO "A46"]
[WhiteElo "2432"]
[BlackElo "2587"]
[Annotator "ChessBase"]
[PlyCount "94"]
[EventDate "2019.07.18"]
[EventType "swiss"]
[EventCountry "HUN"]
[SourceTitle "playchess.com"]
[Source "ChessBase"]
[SourceQuality "1"]
[TimeControl "1200+5"]

1. d4 {[%emt 0:00:01]} Nf6 {[%emt 0:00:02]} 2. Nf3 {[%emt 0:00:02]} e6 {[%emt 0:00:08]} 3. e3 {[%emt 0:00:03]} b6 {[%emt 0:00:05]} 4. Bd3 {[%emt 0:00:01]} Bb7 {[%emt 0:00:01]} 5. O-O {[%emt 0:00:03]} d5 {[%emt 0:00:05]} 6. b3 {[%emt 0:00:09]} Bd6 {[%emt 0:00:17]} 7. Bb2 {[%emt 0:00:02]} O-O {[%emt 0:00:06]} 8. Nbd2 {[%emt 0:00:02]} Nbd7 {[%emt 0:00:03]} 9. Ne5 {[%emt 0:00:18]} c5 {[%emt 0:00:18]} 10. f4 {[%emt 0:00:44]} Rc8 {[%emt 0:00:12]} 11. Qe2 {[%emt 0:00:07]} Qe7 {[%emt 0:00:17]} 12. a3 {[%emt 0:00:16]} Rc7 {[%emt 0:00:16]} 13. c3 {[%emt 0:04:02]} Rfc8 {[%emt 0:00:22]} 14. b4 {[%emt 0:01:27]} Ne4 {[%emt 0:01:05]} 15. Bxe4 {[%emt 0:04:59]} dxe4 {[%emt 0:00:02]} 16. Nxd7 {[%emt 0:00:04]} Qxd7 {[%emt 0:00:22]} 17. dxc5 {[%emt 0:00:44]} bxc5 {[%emt 0:00:04]} 18. Rfd1 {[%emt 0:00:59]} c4 {[%emt 0:03:09]} 19. a4 {[%emt 0:00:59]} Bd5 {[%emt 0:00:08]} 20. b5 {[%emt 0:00:03]} Qe7 {[%emt 0:01:53]} 21. Nb1 {[%emt 0:00:01]} Qf6 {[%emt 0:00:28]} 22. Ba3 {[%emt 0:00:13]} Bxa3 {[%emt 0:00:03]} 23. Rxa3 {[%emt 0:00:01]} Rc5 {[%emt 0:00:01]} 24. Qb2 {[%emt 0:02:48]} e5 {[%emt 0:00:18]} 25. fxe5 {[%emt 0:00:43]} Qxe5 {[%emt 0:00:01]} 26. Rd4 {[%emt 0:00:03]} Rb8 {[%emt 0:00:37]} 27. Nd2 {[%emt 0:00:42]} Qg5 {[%emt 0:00:18]} 28. Nf1 {[%emt 0:00:05]} a6 {[%emt 0:00:51]} 29. Qb4 {[%emt 0:00:42]} Be6 {[%emt 0:00:20]} 30. Ra2 {[%emt 0:00:01]} h5 {[%emt 0:00:26]} 31. Rf2 {[%emt 0:00:28]} h4 {[%emt 0:00:17]} 32. Rd6 {[%emt 0:00:13]} axb5 {[%emt 0:00:10]} 33. a5 {[%emt 0:00:00]} Rf5 {[%emt 0:01:05]} 34. Rdd2 {[%emt 0:00:19]} h3 {[%emt 0:00:19]} 35. Rxf5 {[%emt 0:00:24]} Qxf5 {[%emt 0:00:03]} 36. Qd6 {[%emt 0:00:23]} Ra8 37. a6 hxg2 {[%emt 0:00:16]} 38. Rxg2 {[%emt 0:00:02]} Qd5 {[%emt 0:00:24]} 39. Qg3 {[%emt 0:00:14]} g6 {[%emt 0:00:08]} 40. Ra2 {[%emt 0:00:06]} b4 {[%emt 0:00:40]} 41. cxb4 {[%emt 0:00:10]} c3 {[%emt 0:00:07]} 42. Ra5 {[%emt 0:00:02]} Qd1 {[%emt 0:00:16]} 43. a7 c2 {[%emt 0:00:23]} 44. Qb8+ {[%emt 0:00:40]} Kh7 {[%emt 0:00:01]} 45. Rc5 {[%emt 0:00:10]} Bh3 {[%emt 0:00:25]} 46. Kf2 {[%emt 0:00:00]} Qxf1+ {[%emt 0:00:17]} 47. Kg3 {[%emt 0:00:09]} Qf3+ {[%emt 0:00:02]} 0-1

[Event "HUN-ch Rapid 2019"]
[Site "Ajka"]
[Date "2019.07.19"]
[Round "4.5"]
[White "Hera, Imre Jr."]
[Black "Marosi, Levente"]
[Result "0-1"]
[ECO "A10"]
[WhiteElo "2610"]
[BlackElo "2225"]
[Annotator "RC"]
[PlyCount "82"]
[EventDate "2019.07.18"]
[EventType "swiss"]
[EventCountry "HUN"]
[SourceTitle "playchess.com"]
[Source "ChessBase"]
[SourceQuality "1"]
[TimeControl "1200+5"]

1. c4 {[%emt 0:00:02]} g6 {[%emt 0:00:03]} 2. Nc3 {[%emt 0:00:01]} Bg7 {[%emt 0:00:01]} 3. g3 {[%emt 0:00:02]} d6 {[%emt 0:00:07]} 4. Bg2 {[%emt 0:00:01]} e5 {[%emt 0:00:01]} 5. e3 {[%emt 0:00:07]} Nf6 {[%emt 0:00:40]} 6. Nge2 {[%emt 0:00:02]} O-O {[%emt 0:00:02]} 7. O-O {[%emt 0:00:02]} c6 {[%emt 0:00:18]} 8. e4 {[%emt 0:00:16]} Be6 {[%emt 0:02:04]} 9. d3 {[%emt 0:00:01]} d5 {[%emt 0:00:03]} 10. exd5 {[%emt 0:00:04]} cxd5 {[%emt 0:00:02]} 11. Bg5 {[%emt 0:00:02]} dxc4 {[%emt 0:06:05]} 12. Bxb7 {[%emt 0:00:33]} Nbd7 {[%emt 0:00:03]} 13. Bxa8 {[%emt 0:00:40]} Qxa8 {[%emt 0:00:03]} 14. f3 {[%emt 0:00:33]} Qb7 {[%emt 0:01:09]} 15. dxc4 {[%emt 0:06:26]} Bxc4 {[%emt 0:01:54]} 16. Qc2 {[%emt 0:01:06]} Rc8 {[%emt 0:00:22]} 17. Rf2 {[%emt 0:00:36]} Bf8 {[%emt 0:00:52]} 18. Be3 {[%emt 0:00:16]} Nd5 {[%emt 0:00:22]} 19. Nxd5 {[%emt 0:00:12]} Bxd5 {[%emt 0:00:03]} 20. Nc3 {[%emt 0:00:04]} Bxf3 {[%emt 0:00:30]} 21. Qb3 {[%emt 0:00:37]} Qa8 {[%emt 0:01:02]} 22. Raf1 {[%emt 0:00:10]} e4 {[%emt 0:00:02]} 23. Nxe4 {[%emt 0:00:31]} Rb8 {[%emt 0:01:03]} 24. Qc4 {[%emt 0:00:27]} Qxe4 {[%emt 0:00:41]} 25. Qxe4 {[%emt 0:00:09]} Bxe4 {[%emt 0:00:01]} 26. Rxf7 {[%emt 0:00:09]} Ne5 {[%emt 0:00:27]} 27. R7f4 {[%emt 0:01:03]} Bd5 {[%emt 0:00:15]} 28. Bxa7 Ra8 {[%emt 0:00:46]} 29. Bb6 {[%emt 0:02:30]} Bh6 {[%emt 0:00:26]} 30. Rf6 {[%emt 0:00:13]} Nd7 {[%emt 0:00:15]} 31. Bd4 {[%emt 0:00:43]} Nxf6 {[%emt 0:00:03]} 32. Rxf6 {[%emt 0:00:01]} Bg7 {[%emt 0:00:26]} 33. Rf4 {[%emt 0:00:01]} g5 {[%emt 0:00:14]} 34. Rg4 {[%emt 0:00:01]} Ra4 {[%emt 0:00:39]} 35. Rxg5 {[%emt 0:00:07]} Rxd4 {[%emt 0:00:01]} 36. Kf2 {[%emt 0:00:06]} Bxa2 {[%emt 0:00:10]} 37. Ra5 {[%emt 0:00:02]} Rd2+ {[%emt 0:00:11]} 38. Ke3 {[%emt 0:00:01]} Rxb2 {[%emt 0:00:02]} 39. Ra8+ {[%emt 0:00:01]} Kf7 {[%emt 0:00:01]} 40. Ra7+ {[%emt 0:00:01]} Kf6 {[%emt 0:00:03]} 41. Ra6+ {[%emt 0:00:01]} Be6 {[%emt 0:00:01]} 0-1

[Event "HUN-ch Rapid 2019"]
[Site "Ajka"]
[Date "2019.07.19"]
[Round "4.6"]
[White "Ruck, Robert"]
[Black "Horvath, Tamas I"]
[Result "1-0"]
[ECO "A05"]
[WhiteElo "2524"]
[BlackElo "2318"]
[Annotator "ChessBase"]
[PlyCount "81"]
[EventDate "2019.07.18"]
[EventType "swiss"]
[EventCountry "HUN"]
[SourceTitle "playchess.com"]
[Source "ChessBase"]
[SourceQuality "1"]
[TimeControl "1200+5"]

1. Nf3 {[%emt 0:00:02]} Nf6 {[%emt 0:00:12]} 2. c4 {[%emt 0:00:03]} c5 {[%emt 0:00:10]} 3. Nc3 {[%emt 0:00:02]} b6 {[%emt 0:00:30]} 4. e4 {[%emt 0:00:02]} Bb7 {[%emt 0:00:22]} 5. e5 {[%emt 0:00:22]} Ne4 {[%emt 0:00:54]} 6. Ne2 {[%emt 0:04:08]} b5 {[%emt 0:02:22]} 7. cxb5 {[%emt 0:00:13]} d5 {[%emt 0:00:58]} 8. exd6 {[%emt 0:02:18]} exd6 {[%emt 0:01:05]} 9. Nc3 {[%emt 0:00:12]} Be7 {[%emt 0:00:28]} 10. Be2 {[%emt 0:01:34]} O-O {[%emt 0:00:19]} 11. O-O {[%emt 0:00:15]} a6 {[%emt 0:01:08]} 12. a4 {[%emt 0:02:42]} Bf6 {[%emt 0:00:30]} 13. d4 {[%emt 0:00:26]} Nd7 {[%emt 0:03:08]} 14. bxa6 {[%emt 0:02:09]} Nxc3 {[%emt 0:00:29]} 15. bxc3 {[%emt 0:00:01]} Bxa6 {[%emt 0:00:06]} 16. Bf4 {[%emt 0:00:01]} Re8 {[%emt 0:00:14]} 17. Re1 {[%emt 0:00:26]} Bxe2 {[%emt 0:00:30]} 18. Rxe2 {[%emt 0:00:02]} Rxe2 {[%emt 0:00:16]} 19. Qxe2 {[%emt 0:00:01]} Nb6 {[%emt 0:00:04]} 20. Qb5 {[%emt 0:00:40]} Nd5 {[%emt 0:00:36]} 21. Bd2 {[%emt 0:00:01]} Nc7 {[%emt 0:01:32]} 22. Qc4 {[%emt 0:00:50]} Ra5 {[%emt 0:00:33]} 23. Qb3 {[%emt 0:01:24]} Qc8 {[%emt 0:01:13]} 24. Bf4 {[%emt 0:01:22]} cxd4 {[%emt 0:00:47]} 25. cxd4 {[%emt 0:00:09]} Ne6 {[%emt 0:00:16]} 26. Bxd6 {[%emt 0:00:49]} Bxd4 {[%emt 0:00:21]} 27. Rd1 {[%emt 0:00:07]} Ba7 {[%emt 0:00:05]} 28. Bb4 {[%emt 0:00:36]} Ra6 {[%emt 0:00:04]} 29. a5 {[%emt 0:00:05]} h6 {[%emt 0:00:01]} 30. Be1 {[%emt 0:00:01]} Nf4 {[%emt 0:00:12]} 31. g3 {[%emt 0:00:45]} Ng6 {[%emt 0:00:47]} 32. Qd3 {[%emt 0:00:12]} Kh7 {[%emt 0:00:25]} 33. Ne5 {[%emt 0:00:21]} Re6 {[%emt 0:00:22]} 34. Nxg6 {[%emt 0:00:04]} fxg6 {[%emt 0:00:03]} 35. Qd5 {[%emt 0:00:15]} Rf6 {[%emt 0:00:05]} 36. Kg2 {[%emt 0:00:03]} Qc2 {[%emt 0:00:11]} 37. Rd2 {[%emt 0:00:06]} Qb1 {[%emt 0:00:02]} 38. Re2 {[%emt 0:00:03]} Qb8 {[%emt 0:00:30]} 39. Re7 {[%emt 0:00:07]} Bxf2 {[%emt 0:01:08]} 40. Bxf2 {[%emt 0:00:08]} Qb2 {[%emt 0:00:02]} 41. Qd4 {[%emt 0:00:04]} 1-0

[Event "HUN-ch Rapid 2019"]
[Site "Ajka"]
[Date "2019.07.19"]
[Round "4.7"]
[White "Nagy, Bence"]
[Black "Czebe, Attila"]
[Result "0-1"]
[ECO "C41"]
[WhiteElo "2352"]
[BlackElo "2436"]
[Annotator "NA"]
[PlyCount "74"]
[EventDate "2019.07.18"]
[EventType "swiss"]
[EventCountry "HUN"]
[SourceTitle "playchess.com"]
[Source "ChessBase"]
[SourceQuality "1"]
[TimeControl "1200+5"]

1. e4 {[%emt 0:00:02]} d6 {[%emt 0:00:01]} 2. d4 {[%emt 0:00:02]} Nf6 {[%emt 0:00:01]} 3. Nc3 {[%emt 0:00:04]} e5 {[%emt 0:00:01]} 4. Nf3 {[%emt 0:00:06]} Nbd7 {[%emt 0:00:04]} 5. Bc4 {[%emt 0:00:12]} Be7 {[%emt 0:00:01]} 6. a4 {[%emt 0:00:28]} exd4 {[%emt 0:00:20]} 7. Nxd4 {[%emt 0:00:16]} Nb6 {[%emt 0:00:04]} 8. Ba2 {[%emt 0:00:10]} a5 {[%emt 0:00:02]} 9. O-O {[%emt 0:00:21]} O-O {[%emt 0:00:03]} 10. Nf5 {[%emt 0:01:59]} Bxf5 {[%emt 0:00:10]} 11. exf5 {[%emt 0:00:02]} d5 {[%emt 0:00:15]} 12. Re1 {[%emt 0:00:27]} c6 {[%emt 0:00:04]} 13. Be3 {[%emt 0:00:18]} Nbd7 {[%emt 0:00:42]} 14. Qf3 {[%emt 0:00:17]} Bc5 {[%emt 0:00:27]} 15. Bg5 {[%emt 0:01:30]} Qb6 {[%emt 0:00:32]} 16. Bb3 {[%emt 0:00:01]} Rfe8 {[%emt 0:00:12]} 17. Bh4 {[%emt 0:00:19]} Qb4 {[%emt 0:00:26]} 18. Bg5 {[%emt 0:00:42]} Qg4 {[%emt 0:00:20]} 19. Qxg4 {[%emt 0:00:18]} Nxg4 {[%emt 0:00:02]} 20. Bh4 {[%emt 0:00:06]} Nh6 {[%emt 0:00:27]} 21. Ne2 {[%emt 0:01:35]} Nxf5 {[%emt 0:00:07]} 22. Bg3 {[%emt 0:00:02]} Nf6 {[%emt 0:00:22]} 23. Nf4 {[%emt 0:01:06]} Nd4 {[%emt 0:00:02]} 24. Nd3 {[%emt 0:00:10]} Bb6 {[%emt 0:00:08]} 25. Be5 {[%emt 0:00:18]} Nxb3 {[%emt 0:00:22]} 26. cxb3 {[%emt 0:00:05]} Nd7 {[%emt 0:00:03]} 27. Bc3 {[%emt 0:00:14]} f6 {[%emt 0:00:01]} 28. b4 {[%emt 0:00:06]} axb4 {[%emt 0:00:06]} 29. Bxb4 {[%emt 0:00:29]} Ne5 {[%emt 0:00:54]} 30. Nc5 {[%emt 0:03:31]} Bxc5 {[%emt 0:00:13]} 31. Bxc5 {[%emt 0:00:03]} Nd3 {[%emt 0:00:06]} 32. Rxe8+ {[%emt 0:00:02]} Rxe8 {[%emt 0:00:01]} 33. b4 {[%emt 0:00:32]} Nxc5 {[%emt 0:00:46]} 34. bxc5 {[%emt 0:00:02]} Re4 {[%emt 0:00:01]} 35. g3 {[%emt 0:00:42]} Rc4 {[%emt 0:00:01]} 36. Rb1 {[%emt 0:00:04]} Rxa4 {[%emt 0:00:04]} 37. Rxb7 {[%emt 0:00:02]} Ra5 {[%emt 0:00:06]} 0-1

[Event "HUN-ch Rapid 2019"]
[Site "Ajka"]
[Date "2019.07.19"]
[Round "4.8"]
[White "Vertetics, Attila"]
[Black "Kiss, Pal"]
[Result "1-0"]
[ECO "D10"]
[WhiteElo "2438"]
[BlackElo "2278"]
[Annotator "NA"]
[PlyCount "111"]
[EventDate "2019.07.18"]
[EventType "swiss"]
[EventCountry "HUN"]
[SourceTitle "playchess.com"]
[Source "ChessBase"]
[SourceQuality "1"]
[TimeControl "1200+5"]

1. d4 {[%emt 0:00:01]} d5 {[%emt 0:00:02]} 2. c4 {[%emt 0:00:04]} c6 {[%emt 0:00:02]} 3. cxd5 {[%emt 0:00:02]} cxd5 {[%emt 0:00:01]} 4. Bg5 {[%emt 0:00:01]} Nc6 {[%emt 0:00:28]} 5. e3 {[%emt 0:00:02]} Nf6 {[%emt 0:01:09]} 6. Bxf6 {[%emt 0:00:55]} gxf6 {[%emt 0:00:13]} 7. Nc3 {[%emt 0:00:03]} e6 {[%emt 0:00:15]} 8. Bd3 {[%emt 0:00:21]} Bd6 {[%emt 0:00:31]} 9. Nge2 {[%emt 0:00:34]} f5 {[%emt 0:00:48]} 10. Rc1 {[%emt 0:00:17]} Bd7 {[%emt 0:00:15]} 11. g3 {[%emt 0:02:08]} Rc8 {[%emt 0:00:24]} 12. Kf1 {[%emt 0:00:57]} Na5 {[%emt 0:01:04]} 13. Nb5 {[%emt 0:00:43]} Bb8 {[%emt 0:00:45]} 14. b3 {[%emt 0:01:49]} a6 {[%emt 0:00:16]} 15. Nbc3 {[%emt 0:00:46]} Bd6 {[%emt 0:00:12]} 16. Kg2 {[%emt 0:00:08]} Nc6 {[%emt 0:03:18]} 17. Qd2 {[%emt 0:00:29]} Ba3 {[%emt 0:00:31]} 18. Rcd1 {[%emt 0:00:11]} Ne7 {[%emt 0:01:35]} 19. h4 {[%emt 0:00:49]} Bb4 {[%emt 0:00:58]} 20. Qb2 {[%emt 0:00:05]} Qa5 {[%emt 0:00:10]} 21. Nb1 {[%emt 0:00:04]} Bb5 {[%emt 0:00:27]} 22. Nf4 {[%emt 0:03:17]} Bd6 {[%emt 0:00:30]} 23. Bxb5+ {[%emt 0:01:02]} Qxb5 {[%emt 0:00:38]} 24. Nd3 {[%emt 0:00:04]} Qd7 {[%emt 0:01:59]} 25. Nc3 {[%emt 0:00:08]} b5 {[%emt 0:01:05]} 26. Ne2 {[%emt 0:00:36]} O-O {[%emt 0:00:40]} 27. Nef4 {[%emt 0:00:35]} Ng6 {[%emt 0:00:38]} 28. Nh5 {[%emt 0:00:42]} f6 {[%emt 0:00:25]} 29. Rc1 {[%emt 0:00:02]} Kf7 {[%emt 0:00:12]} 30. Qd2 {[%emt 0:02:51]} Rxc1 {[%emt 0:00:20]} 31. Rxc1 {[%emt 0:00:02]} Rc8 {[%emt 0:00:01]} 32. Kf1 {[%emt 0:00:46]} Rc6 {[%emt 0:00:43]} 33. Ke2 {[%emt 0:00:43]} Qc8 {[%emt 0:00:21]} 34. Nc5 {[%emt 0:00:38]} Rc7 {[%emt 0:00:54]} 35. b4 {[%emt 0:00:02]} Rc6 {[%emt 0:00:15]} 36. Qd3 {[%emt 0:00:04]} Qf8 {[%emt 0:00:16]} 37. Qd1 {[%emt 0:00:08]} Qc8 {[%emt 0:00:10]} 38. Qb3 {[%emt 0:00:21]} Qf8 {[%emt 0:00:11]} 39. Kf1 {[%emt 0:00:03]} Qh6 {[%emt 0:00:03]} 40. Qd1 {[%emt 0:00:01]} Qf8 {[%emt 0:00:01]} 41. a4 {[%emt 0:00:24]} Qb8 {[%emt 0:00:11]} 42. Ra1 {[%emt 0:00:07]} Rc8 {[%emt 0:00:18]} 43. Nxa6 {[%emt 0:00:08]} Qb6 {[%emt 0:00:03]} 44. Nc5 {[%emt 0:00:01]} bxa4 {[%emt 0:00:03]} 45. Rxa4 {[%emt 0:00:02]} Qb5+ {[%emt 0:00:06]} 46. Kg2 {[%emt 0:00:01]} Rc7 {[%emt 0:00:11]} 47. Qf1 {[%emt 0:00:26]} Qxf1+ {[%emt 0:00:08]} 48. Kxf1 {[%emt 0:00:00]} Ne7 {[%emt 0:00:06]} 49. Ra6 {[%emt 0:00:06]} Nc8 {[%emt 0:00:02]} 50. Ke2 {[%emt 0:00:03]} Ra7 {[%emt 0:00:04]} 51. Rc6 {[%emt 0:00:03]} Ra8 {[%emt 0:00:04]} 52. Nf4 {[%emt 0:00:02]} Ra2+ {[%emt 0:00:07]} 53. Kf3 {[%emt 0:00:01]} e5 {[%emt 0:00:06]} 54. Nxd5 {[%emt 0:00:03]} e4+ {[%emt 0:00:01]} 55. Kg2 {[%emt 0:00:01]} Rc2 {[%emt 0:00:08]} 56. Rxc8 {[%emt 0:00:01]} 1-0

[Event "HUN-ch Rapid 2019"]
[Site "Ajka"]
[Date "2019.07.19"]
[Round "4.9"]
[White "Nemeth, Zoltan"]
[Black "Aczel, Gergely"]
[Result "1/2-1/2"]
[ECO "A06"]
[WhiteElo "2275"]
[BlackElo "2540"]
[Annotator "ChessBase"]
[PlyCount "90"]
[EventDate "2019.07.18"]
[EventType "swiss"]
[EventCountry "HUN"]
[SourceTitle "playchess.com"]
[Source "ChessBase"]
[SourceQuality "1"]
[TimeControl "1200+5"]

1. Nf3 d5 2. g3 c6 3. Bg2 Bg4 4. d4 e6 5. Nbd2 Nf6 6. O-O Be7 7. Re1 O-O 8. c3 Nbd7 9. e4 Bh5 10. Qb3 Rb8 11. h3 h6 12. Ne5 Nxe5 13. dxe5 Nd7 14. exd5 cxd5 15. g4 Bg6 16. Nf3 Nc5 17. Qd1 Nd3 18. Re3 Nxc1 19. Rxc1 b5 20. a3 a5 21. Qd2 Qc7 22. Ree1 Rfc8 23. Nd4 Bc5 24. b4 Be7 25. Bf1 Qd7 26. Nb3 axb4 27. axb4 Rc7 28. Nd4 Be4 29. Ra1 Bg5 30. f4 Bd8 31. Ra6 Qc8 32. Ra3 Rcb7 33. Kh2 f6 34. Ra6 fxe5 35. fxe5 Bg5 36. Qb2 Bf4+ 37. Kg1 Bxe5 38. Rd1 Rc7 39. Ne2 Rc6 40. Rxc6 Qxc6 41. Nd4 Bxd4+ 42. cxd4 Rf8 43. Rc1 Qd6 44. Qh2 Qxb4 45. Qe5 Qd2 1/2-1/2

[Event "HUN-ch Rapid 2019"]
[Site "Ajka"]
[Date "2019.07.19"]
[Round "4.10"]
[White "Akots, Gabor"]
[Black "Varga, Peter"]
[Result "1/2-1/2"]
[ECO "D12"]
[WhiteElo "2238"]
[BlackElo "2367"]
[Annotator "NA"]
[PlyCount "102"]
[EventDate "2019.07.18"]
[EventType "swiss"]
[EventCountry "HUN"]
[SourceTitle "playchess.com"]
[Source "ChessBase"]
[SourceQuality "1"]
[TimeControl "1200+5"]

1. d4 {[%emt 0:01:18]} d5 {[%emt 0:00:02]} 2. Nf3 {[%emt 0:00:02]} Nf6 {[%emt 0:00:02]} 3. c4 {[%emt 0:00:01]} c6 {[%emt 0:00:00]} 4. e3 {[%emt 0:00:03]} Bf5 {[%emt 0:00:07]} 5. Nc3 {[%emt 0:00:02]} e6 {[%emt 0:00:01]} 6. Nh4 {[%emt 0:00:02]} Be4 {[%emt 0:00:15]} 7. f3 {[%emt 0:00:01]} Bg6 {[%emt 0:00:00]} 8. Qb3 {[%emt 0:00:01]} Qc7 {[%emt 0:00:28]} 9. Bd2 {[%emt 0:00:16]} Nbd7 {[%emt 0:00:04]} 10. Nxg6 {[%emt 0:01:32]} hxg6 {[%emt 0:00:02]} 11. O-O-O {[%emt 0:00:04]} dxc4 {[%emt 0:00:14]} 12. Bxc4 {[%emt 0:00:05]} Nb6 {[%emt 0:00:02]} 13. g3 {[%emt 0:01:07]} Nxc4 {[%emt 0:01:59]} 14. Qxc4 {[%emt 0:00:02]} O-O-O {[%emt 0:00:02]} 15. e4 {[%emt 0:00:32]} Nd7 {[%emt 0:00:17]} 16. Be3 {[%emt 0:04:27]} Nb6 {[%emt 0:02:11]} 17. Qb3 {[%emt 0:00:02]} Kb8 {[%emt 0:00:10]} 18. Kb1 {[%emt 0:00:07]} Bd6 {[%emt 0:02:14]} 19. d5 {[%emt 0:03:26]} exd5 {[%emt 0:00:31]} 20. exd5 {[%emt 0:00:01]} Rhe8 {[%emt 0:04:32]} 21. Bxb6 {[%emt 0:00:33]} Qxb6 {[%emt 0:00:15]} 22. Qxb6 {[%emt 0:00:16]} axb6 {[%emt 0:00:01]} 23. Ne4 {[%emt 0:00:20]} Kc7 {[%emt 0:00:30]} 24. dxc6 {[%emt 0:00:47]} bxc6 {[%emt 0:00:08]} 25. Nxd6 {[%emt 0:00:33]} Rxd6 {[%emt 0:00:02]} 26. Rxd6 {[%emt 0:00:02]} Kxd6 {[%emt 0:00:01]} 27. Rd1+ {[%emt 0:00:01]} Kc7 {[%emt 0:00:04]} 28. Rd2 {[%emt 0:00:04]} g5 {[%emt 0:00:42]} 29. Kc2 {[%emt 0:00:15]} c5 {[%emt 0:00:57]} 30. Rf2 {[%emt 0:04:45]} Kc6 {[%emt 0:01:25]} 31. f4 {[%emt 0:00:04]} g4 {[%emt 0:01:14]} 32. f5 {[%emt 0:00:19]} Re4 {[%emt 0:00:02]} 33. Kd3 {[%emt 0:00:09]} Kd5 {[%emt 0:00:03]} 34. b3 {[%emt 0:00:20]} Rd4+ {[%emt 0:00:54]} 35. Kc3 {[%emt 0:00:33]} Ke5 {[%emt 0:00:04]} 36. a4 {[%emt 0:00:12]} f6 {[%emt 0:00:14]} 37. Rf1 {[%emt 0:00:12]} Ke4 {[%emt 0:01:04]} 38. Rf4+ {[%emt 0:00:12]} Ke3 {[%emt 0:00:01]} 39. Rf1 {[%emt 0:00:06]} Ke2 {[%emt 0:00:42]} 40. Ra1 {[%emt 0:00:01]} Kf2 {[%emt 0:00:50]} 41. a5 {[%emt 0:00:00]} bxa5 {[%emt 0:00:01]} 42. Rxa5 Rd5 {[%emt 0:00:01]} 43. Kc4 {[%emt 0:00:05]} Rxf5 {[%emt 0:00:04]} 44. b4 {[%emt 0:00:02]} Kg2 {[%emt 0:00:07]} 45. Ra2+ {[%emt 0:00:03]} Kg1 {[%emt 0:00:22]} 46. bxc5 Re5 {[%emt 0:00:03]} 47. c6 {[%emt 0:00:16]} Re8 {[%emt 0:00:02]} 48. Kd5 {[%emt 0:00:03]} f5 {[%emt 0:00:06]} 49. Kd6 {[%emt 0:00:01]} g5 {[%emt 0:00:02]} 50. Kd7 {[%emt 0:00:14]} Rh8 {[%emt 0:00:00]} 51. c7 {[%emt 0:00:22]} f4 {[%emt 0:00:01]} 1/2-1/2